fUSD/lending_fUSD_20260625
["ID","MTS","AMOUNT","RATE_DAILY","PERIOD"]
[426388026,1782336772000,-300.0,0.00033746,2]
[426388027,1782336772000,-301.26044572,0.00033746,2]
[426388032,1782336772000,-1347.53032004,0.00033746,2]
[426388000,1782336772000,-300.0,0.00033746,2]
[426388031,1782336772000,-588.06698112,0.00033746,2]
[426388003,1782336772000,-300.0,0.00033746,2]
[426387978,1782336772000,-311.00869715,0.00033746,2]
[426388002,1782336772000,-300.0,0.00033746,2]
[426387979,1782336772000,-1347.53032004,0.00033746,2]
[426388036,1782336772000,-300.0,0.00033746,2]
[426387980,1782336772000,-303.18999984,0.00033746,2]
[426387975,1782336772000,-300.78783564,0.00033746,2]
[426387977,1782336772000,-588.06698112,0.00033746,2]
[426387976,1782336772000,-1806.0547546,0.00033746,2]
[426387981,1782336772000,-300.0,0.00033746,2]
[426387987,1782336772000,-300.0,0.00033746,2]
[426387984,1782336772000,-300.0,0.00033746,2]
[426387986,1782336772000,-300.0,0.00033746,2]
[426387985,1782336772000,-300.0,0.00033746,2]
[426387983,1782336772000,-300.0,0.00033746,2]
[426387982,1782336772000,-300.0,0.00033746,2]
[426387999,1782336772000,-464.249737,0.00033746,2]
[426387992,1782336772000,-300.0,0.00033746,2]
[426387988,1782336772000,-300.10345689,0.00033746,2]
[426387993,1782336772000,-529.28557893,0.00033746,2]
[426387989,1782336772000,-300.0,0.00033746,2]
[426387990,1782336772000,-300.0,0.00033746,2]
[426387995,1782336772000,-588.06698112,0.00033746,2]
[426388005,1782336772000,-300.0,0.00033746,2]
[426388006,1782336772000,-300.0,0.00033746,2]
[426387996,1782336772000,-311.46597079,0.00033746,2]
[426387998,1782336772000,-300.0,0.00033746,2]
[426387994,1782336772000,-1806.0547546,0.00033746,2]
[426387997,1782336772000,-1347.53032004,0.00033746,2]
[426388001,1782336772000,-300.94872887,0.00033746,2]
[426388004,1782336772000,-300.0,0.00033746,2]
[426387991,1782336772000,-300.0,0.00033746,2]
[426388037,1782336772000,-300.0,0.00033746,2]
[426388035,1782336772000,-426.2955723,0.00033746,2]
[426388097,1782336772000,-500.0,0.00033756,60]
[426388080,1782336772000,-600.0,0.00033756,60]
[426388081,1782336772000,-600.0,0.00033756,60]
[426388071,1782336772000,-600.0,0.00033756,60]
[426388076,1782336772000,-600.0,0.00033756,60]
[426388074,1782336772000,-600.0,0.00033756,60]
[426388069,1782336772000,-600.0,0.00033756,60]
[426388072,1782336772000,-600.0,0.00033756,60]
[426388073,1782336772000,-600.0,0.00033756,60]
[426388077,1782336772000,-600.0,0.00033756,60]
[426388075,1782336772000,-600.0,0.00033756,60]
[426388078,1782336772000,-600.0,0.00033756,60]
[426388079,1782336772000,-600.0,0.00033756,60]
[426388085,1782336772000,-600.0,0.00033756,60]
[426388070,1782336772000,-600.0,0.00033756,60]
[426388093,1782336772000,-500.0,0.00033756,60]
[426388084,1782336772000,-600.0,0.00033756,60]
[426388088,1782336772000,-600.0,0.00033756,60]
[426388086,1782336772000,-600.0,0.00033756,60]
[426388087,1782336772000,-600.0,0.00033756,60]
[426388094,1782336772000,-685.8597226,0.00033756,60]
[426388083,1782336772000,-600.0,0.00033756,60]
[426388090,1782336772000,-500.0,0.00033756,60]
[426388091,1782336772000,-500.0,0.00033756,60]
[426388092,1782336772000,-500.0,0.00033756,60]
[426388096,1782336772000,-500.0,0.00033756,60]
[426388095,1782336772000,-217.0468058,0.00033756,60]
[426388043,1782336772000,-588.06698112,0.00033746,2]
[426388098,1782336772000,-818.1044621,0.00033756,60]
[426388089,1782336772000,-818.4215922,0.00033756,60]
[426388064,1782336772000,-600.0,0.00033756,60]
[426388082,1782336772000,-600.0,0.00033756,60]
[426388062,1782336772000,-327.1541227,0.00033756,60]
[426388068,1782336772000,-600.0,0.00033756,60]
[426388041,1782336772000,-300.0,0.00033746,2]
[426388039,1782336772000,-588.06698112,0.00033746,2]
[426388038,1782336772000,-529.28557893,0.00033746,2]
[426388042,1782336772000,-529.28557893,0.00033746,2]
[426388033,1782336772000,-300.0,0.00033746,2]
[426388044,1782336772000,-716.2854031,0.00033746,2]
[426388046,1782336772000,-300.0,0.00033746,2]
[426388045,1782336772000,-300.0,0.00033746,2]
[426388056,1782336772000,-500.0,0.00033756,60]
[426388048,1782336772000,-588.06698112,0.00033746,2]
[426388055,1782336772000,-735.9863432,0.00033756,60]
[426388053,1782336772000,-390.3136123,0.00033756,60]
[426388051,1782336772000,-500.0,0.00033756,60]
[426388040,1782336772000,-1347.53032004,0.00033746,2]
[426388050,1782336772000,-329.541102,0.00033756,60]
[426388047,1782336772000,-529.28557893,0.00033746,2]
[426388067,1782336772000,-600.0,0.00033756,60]
[426388063,1782336772000,-613.768036,0.00033756,60]
[426388058,1782336772000,-173.3882258,0.00033756,60]
[426388065,1782336772000,-600.0,0.00033756,60]
[426388061,1782336772000,-320.3987985,0.00033756,60]
[426388066,1782336772000,-600.0,0.00033756,60]
[426388057,1782336772000,-626.6350509,0.00033756,60]
[426388060,1782336772000,-262.7315151,0.00033756,60]
[426388049,1782336772000,-2500.0,0.0003375,2]
[426388054,1782336772000,-500.0,0.00033756,60]
[426388052,1782336772000,-500.0,0.00033756,60]
[426388059,1782336772000,-158.9552356,0.00033756,60]
[426388139,1782336773000,-488.695487,0.00033844,7]
[426388137,1782336773000,-3785.05549196,0.00033842,2]
[426388134,1782336773000,-250.0,0.00033841,7]
[426388142,1782336773000,-357.0,0.00033876,2]
[426388140,1782336773000,-176.31,0.00033866,120]
[426388136,1782336773000,-1676.86,0.00033841,4]
[426388130,1782336773000,-150.0,0.00033835,120]
[426388138,1782336773000,-3785.05549196,0.00033842,2]
[426388133,1782336773000,-250.0,0.00033841,7]
[426388141,1782336773000,-151.42675971,0.00033873,35]
[426388135,1782336773000,-250.0,0.00033841,7]
[426388132,1782336773000,-250.0,0.00033841,7]
[426388153,1782336773000,-1000.0,0.00033905,2]
[426388146,1782336773000,-2157.17464086,0.000339,2]
[426388154,1782336773000,-1059.0,0.00033905,2]
[426388143,1782336773000,-180.15,0.0003388,120]
[426388155,1782336773000,-1000.0,0.00033905,2]
[426388144,1782336773000,-176.31,0.00033881,120]
[426388145,1782336773000,-150.46,0.00033894,120]
[426388151,1782336773000,-288.46,0.000339,120]
[426388147,1782336773000,-1395.6313,0.000339,30]
[426388148,1782336773000,-435.8,0.000339,120]
[426388150,1782336773000,-200.0,0.000339,120]
[426388149,1782336773000,-5000.0,0.000339,120]
[426388156,1782336773000,-1000.0,0.00033905,2]
[426388168,1782336773000,-153.8272,0.00033913,2]
[426388131,1782336773000,-1050.0,0.00033836,15]
[426388152,1782336773000,-1588.51,0.00033905,2]
[426388127,1782336773000,-464.09,0.00033819,2]
[426388161,1782336773000,-1000.0,0.00033905,2]
[426388123,1782336773000,-150.0,0.00033815,2]
[426388099,1782336773000,-162.0,0.00033762,30]
[426388104,1782336773000,-1143.0,0.00033764,30]
[426388100,1782336773000,-733.0,0.00033762,30]
[426388105,1782336773000,-151.0,0.00033764,30]
[426388101,1782336773000,-222.0,0.00033762,30]
[426388102,1782336773000,-251.0,0.00033762,30]
[426388103,1782336773000,-464.0,0.00033762,30]
[426388106,1782336773000,-1106.77,0.00033772,7]
[426388109,1782336773000,-1736.23,0.00033783,2]
[426388110,1782336773000,-1919.93,0.0003379,30]
[426388116,1782336773000,-1152.0,0.00033802,30]
[426388112,1782336773000,-10000.0,0.000338,14]
[426388111,1782336773000,-302.23858502,0.000338,120]
[426388113,1782336773000,-336.0,0.00033802,30]
[426388107,1782336773000,-496.9438256,0.00033772,2]
[426388114,1782336773000,-279.0,0.00033802,30]
[426388117,1782336773000,-1559.0,0.00033802,30]
[426388115,1782336773000,-155.0,0.00033802,30]
[426388119,1782336773000,-200.92012322,0.00033805,14]
[426388129,1782336773000,-1158.16,0.00033832,2]
[426388120,1782336773000,-150.0,0.00033815,2]
[426388128,1782336773000,-1438.57,0.00033827,30]
[426388121,1782336773000,-150.0,0.00033815,2]
[426388118,1782336773000,-208.0,0.00033802,30]
[426388125,1782336773000,-767.88942488,0.00033817,2]
[426388126,1782336773000,-767.88942488,0.00033817,2]
[426388122,1782336773000,-150.0,0.00033815,2]
[426388124,1782336773000,-150.0,0.00033815,2]
[426388163,1782336773000,-1000.0,0.00033905,2]
[426388108,1782336773000,-1286.72,0.00033779,2]
[426388160,1782336773000,-1000.0,0.00033905,2]
[426388192,1782336773000,-500.0,0.00033973,7]
[426388206,1782336773000,-500.0,0.00033973,7]
[426388196,1782336773000,-500.0,0.00033973,7]
[426388195,1782336773000,-500.0,0.00033973,7]
[426388199,1782336773000,-500.0,0.00033973,7]
[426388198,1782336773000,-500.0,0.00033973,7]
[426388197,1782336773000,-500.0,0.00033973,7]
[426388200,1782336773000,-500.0,0.00033973,7]
[426388201,1782336773000,-500.0,0.00033973,7]
[426388204,1782336773000,-500.0,0.00033973,7]
[426388202,1782336773000,-500.0,0.00033973,7]
[426388205,1782336773000,-500.0,0.00033973,7]
[426388203,1782336773000,-500.0,0.00033973,7]
[426388193,1782336773000,-500.0,0.00033973,7]
[426388210,1782336773000,-500.0,0.00033973,7]
[426388212,1782336773000,-500.0,0.00033973,7]
[426388213,1782336773000,-500.0,0.00033973,7]
[426388215,1782336773000,-500.0,0.00033973,7]
[426388216,1782336773000,-500.0,0.00033973,7]
[426388221,1782336773000,-500.0,0.00033973,7]
[426388214,1782336773000,-500.0,0.00033973,7]
[426388208,1782336773000,-500.0,0.00033973,7]
[426388218,1782336773000,-500.0,0.00033973,7]
[426388207,1782336773000,-500.0,0.00033973,7]
[426388211,1782336773000,-500.0,0.00033973,7]
[426388219,1782336773000,-500.0,0.00033973,7]
[426388220,1782336773000,-500.0,0.00033973,7]
[426388159,1782336773000,-1000.0,0.00033905,2]
[426388217,1782336773000,-500.0,0.00033973,7]
[426388194,1782336773000,-500.0,0.00033973,7]
[426388209,1782336773000,-500.0,0.00033973,7]
[426388183,1782336773000,-500.0,0.00033973,7]
[426388190,1782336773000,-500.0,0.00033973,7]
[426388158,1782336773000,-1000.0,0.00033905,2]
[426388165,1782336773000,-1000.0,0.00033905,2]
[426388162,1782336773000,-1000.0,0.00033905,2]
[426388164,1782336773000,-1000.0,0.00033905,2]
[426388167,1782336773000,-357.0,0.00033912,2]
[426388166,1782336773000,-1554.87,0.00033905,2]
[426388181,1782336773000,-500.0,0.00033973,7]
[426388170,1782336773000,-5000.0,0.00033955,7]
[426388180,1782336773000,-500.0,0.00033973,7]
[426388169,1782336773000,-698.06898959,0.00033945,7]
[426388173,1782336773000,-500.0,0.00033973,7]
[426388172,1782336773000,-150.0,0.00033972,120]
[426388171,1782336773000,-172.52,0.0003397,120]
[426388157,1782336773000,-1000.0,0.00033905,2]
[426388177,1782336773000,-500.0,0.00033973,7]
[426388174,1782336773000,-500.0,0.00033973,7]
[426388188,1782336773000,-500.0,0.00033973,7]
[426388185,1782336773000,-500.0,0.00033973,7]
[426388189,1782336773000,-500.0,0.00033973,7]
[426388191,1782336773000,-500.0,0.00033973,7]
[426388186,1782336773000,-500.0,0.00033973,7]
[426388182,1782336773000,-500.0,0.00033973,7]
[426388179,1782336773000,-500.0,0.00033973,7]
[426388184,1782336773000,-500.0,0.00033973,7]
[426388175,1782336773000,-500.0,0.00033973,7]
[426388187,1782336773000,-500.0,0.00033973,7]
[426388178,1782336773000,-500.0,0.00033973,7]
[426388176,1782336773000,-500.0,0.00033973,7]
[426388260,1782336774000,-500.0,0.00033973,7]
[426388243,1782336774000,-500.0,0.00033973,7]
[426388248,1782336774000,-500.0,0.00033973,7]
[426388252,1782336774000,-500.0,0.00033973,7]
[426388250,1782336774000,-500.0,0.00033973,7]
[426388244,1782336774000,-500.0,0.00033973,7]
[426388253,1782336774000,-500.0,0.00033973,7]
[426388257,1782336774000,-500.0,0.00033973,7]
[426388267,1782336774000,-150.0,0.00033973,60]
[426388256,1782336774000,-500.0,0.00033973,7]
[426388255,1782336774000,-500.0,0.00033973,7]
[426388261,1782336774000,-500.0,0.00033973,7]
[426388258,1782336774000,-500.0,0.00033973,7]
[426388259,1782336774000,-500.0,0.00033973,7]
[426388262,1782336774000,-500.0,0.00033973,7]
[426388263,1782336774000,-500.0,0.00033973,7]
[426388265,1782336774000,-500.0,0.00033973,7]
[426388264,1782336774000,-500.0,0.00033973,7]
[426388266,1782336774000,-906.09315881,0.00033973,7]
[426388269,1782336774000,-50000.0,0.00034,4]
[426388249,1782336774000,-500.0,0.00033973,7]
[426388270,1782336774000,-10000.0,0.00034,2]
[426388268,1782336774000,-158502.3133,0.0003399,120]
[426388251,1782336774000,-500.0,0.00033973,7]
[426388242,1782336774000,-500.0,0.00033973,7]
[426388245,1782336774000,-500.0,0.00033973,7]
[426388280,1782336774000,-150.0,0.00034,90]
[426388223,1782336774000,-500.0,0.00033973,7]
[426388228,1782336774000,-500.0,0.00033973,7]
[426388224,1782336774000,-500.0,0.00033973,7]
[426388222,1782336774000,-500.0,0.00033973,7]
[426388226,1782336774000,-500.0,0.00033973,7]
[426388227,1782336774000,-500.0,0.00033973,7]
[426388225,1782336774000,-500.0,0.00033973,7]
[426388230,1782336774000,-500.0,0.00033973,7]
[426388229,1782336774000,-500.0,0.00033973,7]
[426388232,1782336774000,-500.0,0.00033973,7]
[426388234,1782336774000,-500.0,0.00033973,7]
[426388231,1782336774000,-500.0,0.00033973,7]
[426388233,1782336774000,-500.0,0.00033973,7]
[426388235,1782336774000,-500.0,0.00033973,7]
[426388236,1782336774000,-500.0,0.00033973,7]
[426388241,1782336774000,-500.0,0.00033973,7]
[426388240,1782336774000,-500.0,0.00033973,7]
[426388239,1782336774000,-500.0,0.00033973,7]
[426388238,1782336774000,-500.0,0.00033973,7]
[426388237,1782336774000,-500.0,0.00033973,7]
[426388254,1782336774000,-500.0,0.00033973,7]
[426388247,1782336774000,-500.0,0.00033973,7]
[426388246,1782336774000,-500.0,0.00033973,7]
[426388271,1782336774000,-500.0,0.00034,120]
[426388272,1782336774000,-10000.0,0.00034,30]
[426388273,1782336774000,-550.0,0.00034,14]
[426388298,1782336774000,-1567.16041066,0.00034165,2]
[426388303,1782336774000,-210.80140171,0.0003417,14]
[426388300,1782336774000,-3474.81761944,0.00034165,2]
[426388316,1782336774000,-1447.368,0.000342,20]
[426388305,1782336774000,-3221.93328724,0.00034171,2]
[426388306,1782336774000,-1518.07089226,0.00034171,2]
[426388307,1782336774000,-3207.363289,0.00034171,2]
[426388308,1782336774000,-1949.97976004,0.00034171,2]
[426388309,1782336774000,-2439.88900793,0.00034171,2]
[426388315,1782336774000,-177.49397216,0.00034192,30]
[426388311,1782336774000,-2251.72896809,0.00034171,2]
[426388313,1782336774000,-488.695487,0.00034183,7]
[426388314,1782336774000,-464.09,0.00034185,7]
[426388312,1782336774000,-1419.21154536,0.00034171,2]
[426388317,1782336774000,-1447.36,0.000342,30]
[426388319,1782336774000,-1909.04,0.000342,30]
[426388320,1782336774000,-2121.16,0.000342,10]
[426388318,1782336774000,-2121.16,0.000342,30]
[426388321,1782336774000,-245.9997,0.000342,30]
[426388322,1782336774000,-2121.16,0.000342,30]
[426388327,1782336774000,-5000.0,0.00034201,7]
[426388328,1782336774000,-674.0,0.00034228,8]
[426388325,1782336774000,-517.3889,0.000342,20]
[426388301,1782336774000,-1781.71368557,0.00034165,2]
[426388299,1782336774000,-3049.64958804,0.00034165,2]
[426388310,1782336774000,-1680.58380102,0.00034171,2]
[426388297,1782336774000,-469.76278999,0.0003414,7]
[426388274,1782336774000,-10394.724,0.00034,120]
[426388302,1782336774000,-212.87611852,0.0003417,14]
[426388276,1782336774000,-1000.0,0.00034,2]
[426388279,1782336774000,-71150.12145919,0.00034,2]
[426388278,1782336774000,-9400.8614221,0.00034,14]
[426388275,1782336774000,-1000.0,0.00034,2]
[426388277,1782336774000,-604.037627,0.00034,2]
[426388292,1782336774000,-571.0,0.00034097,7]
[426388283,1782336774000,-12457.68715505,0.00034,14]
[426388281,1782336774000,-151.0,0.00034,120]
[426388286,1782336774000,-1426.45,0.00034,30]
[426388282,1782336774000,-800.0,0.00034,7]
[426388293,1782336774000,-1500.0,0.000341,2]
[426388287,1782336774000,-212.37,0.00034015,120]
[426388289,1782336774000,-158.3714054,0.00034015,2]
[426388285,1782336774000,-750.0,0.00034,2]
[426388291,1782336774000,-5000.0,0.00034078,7]
[426388288,1782336774000,-350.0,0.00034015,33]
[426388290,1782336774000,-150.0,0.00034042,2]
[426388294,1782336774000,-150.0,0.00034109,120]
[426388295,1782336774000,-2000.0,0.0003411,30]
[426388296,1782336774000,-500.0,0.0003414,7]
[426388304,1782336774000,-1684.14238362,0.00034171,2]
[426388284,1782336774000,-950.95663756,0.00034,2]
[426388382,1782336775000,-500.0,0.00034453,2]
[426388372,1782336775000,-3130.13446242,0.000344,10]
[426388386,1782336775000,-500.0,0.00034489,120]
[426388384,1782336775000,-514.14206084,0.00034453,2]
[426388383,1782336775000,-292.2850412,0.00034453,2]
[426388377,1782336775000,-150.0,0.00034423,120]
[426388381,1782336775000,-500.0,0.00034453,2]
[426388378,1782336775000,-5000.0,0.00034446,7]
[426388379,1782336775000,-150.0,0.00034453,2]
[426388371,1782336775000,-10000.0,0.000344,120]
[426388385,1782336775000,-5370.2986,0.00034481,2]
[426388380,1782336775000,-150.0,0.00034453,2]
[426388387,1782336775000,-1000.0,0.000345,2]
[426388390,1782336775000,-800.0,0.000345,7]
[426388389,1782336775000,-1000.0,0.000345,30]
[426388391,1782336775000,-800.0,0.000345,7]
[426388393,1782336775000,-800.0,0.000345,7]
[426388392,1782336775000,-800.0,0.000345,7]
[426388400,1782336775000,-488.695487,0.00034521,7]
[426388395,1782336775000,-29290.73504563,0.000345,10]
[426388394,1782336775000,-800.0,0.000345,7]
[426388396,1782336775000,-150.0,0.00034511,120]
[426388399,1782336775000,-382.0,0.00034521,120]
[426388401,1782336775000,-565.0,0.00034536,7]
[426388397,1782336775000,-150.0,0.0003452,120]
[426388398,1782336775000,-150.0,0.0003452,120]
[426388369,1782336775000,-150.0,0.00034383,120]
[426388388,1782336775000,-1500.0,0.000345,2]
[426388373,1782336775000,-1169.21305,0.000344,120]
[426388349,1782336775000,-151.0,0.00034303,2]
[426388366,1782336775000,-846.49420686,0.0003435,120]
[426388352,1782336775000,-185.23,0.00034303,2]
[426388343,1782336775000,-644.09,0.00034303,2]
[426388347,1782336775000,-203.49,0.00034303,2]
[426388344,1782336775000,-151.0,0.00034303,2]
[426388348,1782336775000,-573.72,0.00034303,2]
[426388403,1782336775000,-32619.68,0.00034544,60]
[426388345,1782336775000,-152.67,0.00034303,2]
[426388350,1782336775000,-573.72,0.00034303,2]
[426388346,1782336775000,-151.0,0.00034303,2]
[426388351,1782336775000,-185.23,0.00034303,2]
[426388354,1782336775000,-151.0,0.00034303,2]
[426388353,1782336775000,-151.0,0.00034303,2]
[426388364,1782336775000,-5000.0,0.00034324,7]
[426388368,1782336775000,-5370.2986,0.00034358,2]
[426388356,1782336775000,-644.42,0.00034303,2]
[426388355,1782336775000,-151.0,0.00034303,2]
[426388359,1782336775000,-644.42,0.00034303,2]
[426388360,1782336775000,-151.0,0.00034303,2]
[426388358,1782336775000,-151.0,0.00034303,2]
[426388362,1782336775000,-151.0,0.00034303,2]
[426388363,1782336775000,-9883.5,0.00034309,7]
[426388361,1782336775000,-151.0,0.00034303,2]
[426388365,1782336775000,-10000.0,0.00034333,2]
[426388376,1782336775000,-1500.0,0.000344,7]
[426388375,1782336775000,-5000.0,0.000344,120]
[426388367,1782336775000,-1290.7043,0.00034358,2]
[426388374,1782336775000,-1866.24356,0.000344,120]
[426388370,1782336775000,-1919.92,0.00034399,30]
[426388357,1782336775000,-644.42,0.00034303,2]
[426388413,1782336775000,-5000.0,0.00034569,7]
[426388456,1782336775000,-501.0,0.000349,30]
[426388402,1782336775000,-1067.61,0.00034544,60]
[426388438,1782336775000,-336.0,0.00034802,30]
[426388439,1782336775000,-279.0,0.00034802,30]
[426388447,1782336775000,-5370.2986,0.00034849,2]
[426388440,1782336775000,-1152.0,0.00034802,30]
[426388449,1782336775000,-1061.75540675,0.0003488,120]
[426388448,1782336775000,-488.695487,0.0003486,7]
[426388451,1782336775000,-440244.30655553,0.0003488,2]
[426388450,1782336775000,-204.0,0.0003488,30]
[426388441,1782336775000,-1559.0,0.00034802,30]
[426388442,1782336775000,-208.0,0.00034802,30]
[426388443,1782336775000,-5000.0,0.00034815,7]
[426388444,1782336775000,-1388.3,0.00034828,30]
[426388446,1782336775000,-158.3714054,0.00034837,2]
[426388445,1782336775000,-1796.72284367,0.00034831,2]
[426388454,1782336775000,-150.0,0.00034884,120]
[426388463,1782336775000,-464.09,0.00034917,2]
[426388458,1782336775000,-332.18308859,0.000349,120]
[426388459,1782336775000,-410.86,0.000349,60]
[426388460,1782336775000,-1545.42,0.000349,60]
[426388453,1782336775000,-440244.30655553,0.0003488,2]
[426388464,1782336775000,-150.0,0.00034931,120]
[426388452,1782336775000,-440244.30655553,0.0003488,2]
[426388457,1782336775000,-5000.0,0.000349,120]
[426388461,1782336775000,-150.0,0.000349,120]
[426388462,1782336775000,-200.0,0.00034901,2]
[426388455,1782336775000,-435.8,0.000349,120]
[426388404,1782336775000,-2076.42,0.00034544,60]
[426388429,1782336775000,-251.0,0.00034762,30]
[426388437,1782336775000,-10000.0,0.000348,15]
[426388465,1782336775000,-177.49397216,0.00034932,30]
[426388436,1782336775000,-279949.14819756,0.000348,30]
[426388431,1782336775000,-1143.0,0.00034764,30]
[426388405,1782336775000,-402.05,0.00034544,60]
[426388407,1782336775000,-150.0,0.0003455,2]
[426388409,1782336775000,-150.0,0.0003455,2]
[426388410,1782336775000,-153.99428602,0.0003455,2]
[426388408,1782336775000,-150.0,0.0003455,2]
[426388411,1782336775000,-464.09,0.00034551,30]
[426388412,1782336775000,-158.3714054,0.00034563,2]
[426388414,1782336775000,-373.17,0.0003459,30]
[426388416,1782336775000,-1009.54,0.000346,60]
[426388418,1782336775000,-150.0,0.00034657,120]
[426388417,1782336775000,-5370.2986,0.00034603,2]
[426388419,1782336775000,-10000.0,0.00034667,2]
[426388423,1782336775000,-2439.08,0.00034725,30]
[426388406,1782336775000,-177.49397216,0.00034548,30]
[426388415,1782336775000,-83010.59460773,0.000346,3]
[426388434,1782336775000,-150.0,0.00034794,120]
[426388435,1782336775000,-1500.0,0.00034795,2]
[426388432,1782336775000,-157.0,0.00034764,30]
[426388433,1782336775000,-150.0,0.00034787,120]
[426388420,1782336775000,-217083.56573422,0.0003468,30]
[426388427,1782336775000,-733.0,0.00034762,30]
[426388430,1782336775000,-464.0,0.00034762,30]
[426388426,1782336775000,-162.0,0.00034762,30]
[426388425,1782336775000,-674.0,0.00034748,9]
[426388421,1782336775000,-69930.49049828,0.0003468,30]
[426388424,1782336775000,-5370.2986,0.00034726,2]
[426388422,1782336775000,-5000.0,0.00034692,7]
[426388428,1782336775000,-222.0,0.00034762,30]
[426388510,1782336776000,-290.0,0.00035,120]
[426388513,1782336776000,-163.95525888,0.00035,15]
[426388507,1782336776000,-10000.0,0.00035,30]
[426388506,1782336776000,-250.47,0.00035,120]
[426388492,1782336776000,-2573.0158668,0.00035,2]
[426388503,1782336776000,-5598.0,0.00035,120]
[426388496,1782336776000,-300.0,0.00035,28]
[426388500,1782336776000,-1000.0,0.00035,2]
[426388497,1782336776000,-2100.0,0.00035,120]
[426388498,1782336776000,-14781.6052022,0.00035,30]
[426388505,1782336776000,-1500.0,0.00035,2]
[426388511,1782336776000,-260000.0,0.00035,50]
[426388514,1782336776000,-601.8,0.00035,120]
[426388509,1782336776000,-202.94,0.00035,7]
[426388508,1782336776000,-10000.0,0.00035,30]
[426388512,1782336776000,-404.28187051,0.00035,3]
[426388525,1782336776000,-183.58683167,0.00035,120]
[426388515,1782336776000,-5796.20889433,0.00035,120]
[426388517,1782336776000,-151688.15564433,0.00035,90]
[426388516,1782336776000,-862.0324618,0.00035,120]
[426388518,1782336776000,-1052.39638438,0.00035,120]
[426388520,1782336776000,-19355.65087855,0.00035,30]
[426388523,1782336776000,-389.0,0.00035,120]
[426388519,1782336776000,-151.0,0.00035,5]
[426388524,1782336776000,-254.62905649,0.00035,120]
[426388499,1782336776000,-10000.0,0.00035,120]
[426388504,1782336776000,-5095.0,0.00035,3]
[426388495,1782336776000,-3200.0,0.00035,120]
[426388478,1782336776000,-150.0,0.00034976,120]
[426388493,1782336776000,-3071.42153114,0.00035,2]
[426388466,1782336776000,-1361.0,0.00034936,2]
[426388476,1782336776000,-223.41,0.0003497,120]
[426388469,1782336776000,-1229.0,0.00034936,2]
[426388468,1782336776000,-383.0,0.00034936,2]
[426388471,1782336776000,-5000.0,0.00034938,7]
[426388470,1782336776000,-3648.0,0.00034936,2]
[426388467,1782336776000,-1277.0,0.00034936,2]
[426388474,1782336776000,-151.42675971,0.0003495,37]
[426388472,1782336776000,-200.0,0.00034946,2]
[426388475,1782336776000,-1036.93,0.00034959,30]
[426388473,1782336776000,-9012.87752227,0.0003495,5]
[426388477,1782336776000,-5370.2986,0.00034972,2]
[426388480,1782336776000,-150.5,0.0003499,120]
[426388486,1782336776000,-222.86071694,0.00034998,120]
[426388483,1782336776000,-9883.5,0.00034994,7]
[426388522,1782336776000,-980.0766944,0.00035,5]
[426388482,1782336776000,-169.45,0.0003499,120]
[426388484,1782336776000,-238.65305873,0.00034998,120]
[426388487,1782336776000,-153.28497683,0.00034998,120]